Workbook

Sheet Inicio MBlp
A24: Descargue la versión Kindle
K32: Miguel Cervantes Jiménez

Sheet MaxBen lp (hidden)
A1: MAXIMIZACIÓN DEL BENEFICIO
A2: LARGO PLAZO
B6: Función de producción | D6: Precios del bien y factores | G6: Componentes del beneficio
B7: y | C7: ='Oculto MaxBenlp'!E4 -> 2,302.7 | D7: p | E7: ='Oculto MaxBenlp'!E2 -> 12,664.8 | G7: w1 * q1 | H7: ='Oculto MaxBenlp'!G4 -> 50,659.0
B8: A | C8: 10.0 | D8: p | E8: 55.0 | G8: w2 * q2 | H8: ='Oculto MaxBenlp'!G5 -> 63,323.8
B9: q1 | C9: ='Oculto MaxBenlp'!C4 -> 253.3 | D9: w1 | E9: 200.0 | G9: Costo | H9: ='Oculto MaxBenlp'!G6 -> 113,982.8
B10: a | C10: 0.4 | D10: q1 | E10: ='Oculto MaxBenlp'!E6 -> 253.3 | G10: p·y | H10: ='Oculto MaxBenlp'!G3 -> 126,647.6
B11: q2 | C11: ='Oculto MaxBenlp'!C6 -> 633.2 | D11: w2 | E11: 100.0 | G11: p | H11: ='Oculto MaxBenlp'!G7 -> 12,664.8
B12: b | C12: 0.5 | D12: q2 | E12: ='Oculto MaxBenlp'!E8 -> 633.2
C13: Inserte los datos correspondientes
B20: =1-C10 -> 0.6
B25: Títulos
B27: Títulos
B28: Resultados
B29: Insertar datos
B30: Valores de equilibrio

Sheet MaxBen lp Dps (hidden)
A1: MAXIMIZACIÓN DEL BENEFICIO
A2: LARGO PLAZO (cambio de precios)
B3: =1-C8 -> 0.3
B4: Función de producción (Caso 1) | E4: Función de producción (Caso 2) | H4: Variación porcentual
B5: y | C5: ='Oculto MaxBenlp'!C15 -> 127.0 | E5: y | F5: ='Oculto MaxBenlp'!E27 -> 127.0 | H5: y | I5: ='Oculto MaxBenlp'!C34 -> 0.0%
B6: A | C6: 2.0 | E6: A | F6: ='Oculto MaxBenlp'!C26 -> 2.0 | H6: A
B7: q1 | C7: ='Oculto MaxBenlp'!C17 -> 105.8 | E7: q1 | F7: ='Oculto MaxBenlp'!C27 -> 105.8 | H7: q1 | I7: ='Oculto MaxBenlp'!C36 -> 0.0%
B8: a | C8: 0.7 | E8: a | F8: ='Oculto MaxBenlp'!C28 -> 0.7 | H8: a
B9: q2 | C9: ='Oculto MaxBenlp'!C19 -> 84.7 | E9: q2 | F9: ='Oculto MaxBenlp'!C29 -> 84.7 | H9: q2 | I9: ='Oculto MaxBenlp'!C38 -> 0.0%
B10: b | C10: 0.2 | E10: b | F10: ='Oculto MaxBenlp'!C30 -> 0.2 | H10: b
C11: Inserte datos correspondientes
B13: Precios del bien y factores (Caso 1) | E13: Precios del bien y factores (Caso 2) | H13: Variación porcentual
B14: p | C14: ='Oculto MaxBenlp'!E15 -> 1,270.1 | E14: p | F14: ='Oculto MaxBenlp'!E25 -> 1,270.1 | H14: p | I14: ='Oculto MaxBenlp'!E34 -> 0.0%
B15: p | C15: 100.0 | E15: p | F15: =C15 -> 100.0 | H15: p | I15: ='Oculto MaxBenlp'!E35 -> 0.0%
B16: w1 | C16: 84.0 | E16: w1 | F16: =C16 -> 84.0 | H16: w1 | I16: ='Oculto MaxBenlp'!E37 -> 0.0%
B17: q1 | C17: ='Oculto MaxBenlp'!E19 -> 105.8 | E17: q1 | F17: ='Oculto MaxBenlp'!E29 -> 105.8 | H17: q1 | I17: ='Oculto MaxBenlp'!E38 -> 0.0%
B18: w2 | C18: 30.0 | E18: w2 | F18: =C18 -> 30.0 | H18: w2 | I18: ='Oculto MaxBenlp'!E39 -> 0.0%
B19: q2 | C19: ='Oculto MaxBenlp'!E21 -> 84.7 | E19: q2 | F19: ='Oculto MaxBenlp'!E31 -> 84.7 | H19: q2 | I19: ='Oculto MaxBenlp'!E40 -> 0.0%
C20: Inserte datos correspondientes | F20: Cambiar datos
B22: Componentes del beneficio (Caso 1) | E22: Componentes del beneficio (Caso 2) | H22: Variación porcentual
B23: w1 * q1 | C23: ='Oculto MaxBenlp'!G17 -> 8,890.9 | E23: w1 * q1 | F23: ='Oculto MaxBenlp'!G27 -> 8,890.9 | H23: w1 * q1 | I23: ='Oculto MaxBenlp'!G36 -> 0.0%
B24: w2 * q2 | C24: ='Oculto MaxBenlp'!G18 -> 2,540.3 | E24: w2 * q2 | F24: ='Oculto MaxBenlp'!G28 -> 2,540.3 | H24: w2 * q2 | I24: ='Oculto MaxBenlp'!G37 -> 0.0%
B25: Costo | C25: ='Oculto MaxBenlp'!G19 -> 11,431.2 | E25: Costo | F25: ='Oculto MaxBenlp'!G29 -> 11,431.2 | H25: Costo | I25: ='Oculto MaxBenlp'!G38 -> 0.0%
B26: p·y | C26: ='Oculto MaxBenlp'!G16 -> 12,701.3 | E26: p·y | F26: ='Oculto MaxBenlp'!G26 -> 12,701.3 | H26: p·y | I26: ='Oculto MaxBenlp'!G35 -> 0.0%
B27: p | C27: ='Oculto MaxBenlp'!G20 -> 1,270.1 | E27: p | F27: ='Oculto MaxBenlp'!G30 -> 1,270.1 | H27: p | I27: ='Oculto MaxBenlp'!G39 -> 0.0%
B29: Títulos
B30: Resultados
B31: Insertar datos
B32: Valores de equilibrio

Sheet Oculto MaxBenlp (hidden)
B1: MAXIMIZAICÓN DEL BENEFICIO DE LARGO PLAZO
B2: y | C2: =C3*(C4^(C5))*(C6^(C7)) -> 2,302.7 | D2: p | E2: =(E3*E4)-((E5*E6)+(E7*E8)) -> 12,664.8
B3: A | C3: ='MaxBen lp'!C8 -> 10.0 | D3: p | E3: ='MaxBen lp'!E8 -> 55.0 | F3: py | G3: =E3*E4 -> 126647.5811
B4: x1 | C4: =E6 -> 253.3 | D4: y | E4: =(C3^(1/(1-C5-C7)))*((E3*C5)/E5)^(C5/(1-C5-C7))*((E3*C7)/E7)^(C7/(1-C5-C7)) -> 2,302.7 | F4: q1w1 | G4: =E5*E6 -> 50659.03242
B5: a | C5: ='MaxBen lp'!C10 -> 0.4 | D5: w1 | E5: ='MaxBen lp'!E9 -> 200.0 | F5: q2w2 | G5: =E7*E8 -> 63323.79053
B6: x2 | C6: =E8 -> 633.2 | D6: x1 | E6: =(C5*E3*E4)/E5 -> 253.3 | F6: costo | G6: =G5+G4 -> 113982.823
B7: b | C7: ='MaxBen lp'!C12 -> 0.5 | D7: w2 | E7: ='MaxBen lp'!E11 -> 100.0 | F7: beneficio | G7: =G3-G6 -> 12664.75811
D8: x2 | E8: =(C7*E3*E4)/E7 -> 633.2
B14: MAXIMIZAICÓN DEL BENEFICIO DE LARGO PLAZO CUANDO VARÍAN LOS PRECIO DEL BIEN Y DE LOS FACTORES
A15: caso 1 | B15: y | C15: =C16*(C17^(C18))*(C19^(C20)) -> 127.0 | D15: p | E15: =(E16*E17)-((E18*E19)+(E20*E21)) -> 1,270.1
B16: A | C16: ='MaxBen lp Dps'!C6 -> 2.0 | D16: p | E16: ='MaxBen lp Dps'!C15 -> 100.0 | F16: py | G16: =E16*E17 -> 12701.31586
B17: x1 | C17: =E19 -> 105.8 | D17: y | E17: =(C16^(1/(1-C18-C20)))*((E16*C18)/E18)^(C18/(1-C18-C20))*((E16*C20)/E20)^(C20/(1-C18-C20)) -> 127.0 | F17: q1w1 | G17: =E18*E19 -> 8890.921099
B18: a | C18: ='MaxBen lp Dps'!C8 -> 0.7 | D18: w1 | E18: ='MaxBen lp Dps'!C16 -> 84.0 | F18: q2w2 | G18: =E20*E21 -> 2540.263171
B19: x2 | C19: =E21 -> 84.7 | D19: x1 | E19: =(C18*E16*E17)/E18 -> 105.8 | F19: costo | G19: =G18+G17 -> 11431.18427
B20: b | C20: ='MaxBen lp Dps'!C10 -> 0.2 | D20: w2 | E20: ='MaxBen lp Dps'!C18 -> 30.0 | F20: beneficio | G20: =G16-G19 -> 1270.131586
D21: x2 | E21: =(C20*E16*E17)/E20 -> 84.7
A25: caso 2 | B25: y | C25: =C26*(C27^(C28))*(C29^(C30)) -> 127.0 | D25: p | E25: =(E26*E27)-((E28*E29)+(E30*E31)) -> 1,270.1
B26: A | C26: =C16 -> 2.0 | D26: p | E26: ='MaxBen lp Dps'!F15 -> 100.0 | F26: py | G26: =E26*E27 -> 12701.31586
B27: x1 | C27: =E29 -> 105.8 | D27: y | E27: =(C26^(1/(1-C28-C30)))*((E26*C28)/E28)^(C28/(1-C28-C30))*((E26*C30)/E30)^(C30/(1-C28-C30)) -> 127.0 | F27: q1w1 | G27: =E28*E29 -> 8890.921099
B28: a | C28: =C18 -> 0.7 | D28: w1 | E28: ='MaxBen lp Dps'!F16 -> 84.0 | F28: q2w2 | G28: =E30*E31 -> 2540.263171
B29: x2 | C29: =E31 -> 84.7 | D29: x1 | E29: =(C28*E26*E27)/E28 -> 105.8 | F29: costo | G29: =G28+G27 -> 11431.18427
B30: b | C30: =C20 -> 0.2 | D30: w2 | E30: ='MaxBen lp Dps'!F18 -> 30.0 | F30: beneficio | G30: =G26-G29 -> 1270.131586
D31: x2 | E31: =(C30*E26*E27)/E30 -> 84.7
A34: variación | B34: y | C34: =(C25-C15)/C15 -> 0.0% | D34: p | E34: =(E25-E15)/E15 -> 0.0
B35: A | C35: 0.0 | D35: p | E35: 0.0 | F35: py | G35: =(G26-G16)/G16 -> 0
B36: x1 | C36: 0.0 | D36: y | E36: 0.0 | F36: q1w1 | G36: =(G27-G17)/G17 -> 0
B37: a | C37: 0.0 | D37: w1 | E37: 0.0 | F37: q2w2 | G37: =(G28-G18)/G18 -> 0
B38: x2 | C38: 0.0 | D38: x1 | E38: 0.0 | F38: costo | G38: =(G29-G19)/G19 -> 0
B39: b | C39: 0.0 | D39: w2 | E39: 0.0 | F39: beneficio | G39: =(G30-G20)/G20 -> 0
D40: x2 | E40: 0.0
B46: DEMANDA CONDICIONADA DE FACTORES
A47: caso 1 | B47: y | C47: =C48*(C49^(C50))*(C51^(C52)) -> 31.7 | D47: p | E47: =(E48*E49)-((E50*E51)+(E52*E53)) -> 209.4
B48: A | C48: =maxbDCF!C7 -> 2.0 | D48: p | E48: =maxbDCF!C16 -> 22.0 | F48: py | G48: =E48*E49 -> 697.9306311
B49: x1 | C49: =E51 -> 69.8 | D49: y | E49: =(C48^(1/(1-C50-C52)))*((E48*C50)/E50)^(C50/(1-C50-C52))*((E48*C52)/E52)^(C52/(1-C50-C52)) -> 31.7 | F49: q1w1 | G49: =E50*E51 -> 279.1722525
B50: a | C50: =maxbDCF!C9 -> 0.4 | D50: w1 | E50: =maxbDCF!C17 -> 4.0 | F50: q2w2 | G50: =E52*E53 -> 209.3791893
B51: x2 | C51: =E53 -> 34.9 | D51: x1 | E51: =(C50*E48*E49)/E50 -> 69.8 | F51: costo | G51: =G50+G49 -> 488.5514418
B52: b | C52: =maxbDCF!C11 -> 0.3 | D52: w2 | E52: =maxbDCF!C19 -> 6.0 | F52: beneficio | G52: =G48-G51 -> 209.3791893
D53: x2 | E53: =(C52*E48*E49)/E52 -> 34.9
A57: caso 2 | B57: y | C57: =C58*(C59^(C60))*(C61^(C62)) -> 31.7 | D57: p | E57: =(E58*E59)-((E60*E61)+(E62*E63)) -> 209.4
B58: A | C58: =maxbDCF!C7 -> 2.0 | D58: p | E58: =E48 -> 22.0 | F58: py | G58: =E58*E59 -> 697.9306311
B59: x1 | C59: =E61 -> 69.8 | D59: y | E59: =(C58^(1/(1-C60-C62)))*((E58*C60)/E60)^(C60/(1-C60-C62))*((E58*C62)/E62)^(C62/(1-C60-C62)) -> 31.7 | F59: q1w1 | G59: =E60*E61 -> 279.1722525
B60: a | C60: =maxbDCF!C9 -> 0.4 | D60: w1 | E60: =maxbDCF!F17 -> 4.0 | F60: q2w2 | G60: =E62*E63 -> 209.3791893
B61: x2 | C61: =E63 -> 34.9 | D61: x1 | E61: =(C60*E58*E59)/E60 -> 69.8 | F61: costo | G61: =G60+G59 -> 488.5514418
B62: b | C62: =maxbDCF!C11 -> 0.3 | D62: w2 | E62: =maxbDCF!F19 -> 6.0 | F62: beneficio | G62: =G58-G61 -> 209.3791893
D63: x2 | E63: =(C62*E58*E59)/E62 -> 34.9
C65: Demanda Condicionada Factor 1 | F65: Demanda Condicionada Factor 2
C66: w1 (Inicial) | D66: =E50 -> 4.0 | F66: w2 (Inicial) | G66: =E52 -> 6.0
C67: q1 (Inicial) | D67: =E51 -> 69.8 | F67: q2 (Inicial) | G67: =E53 -> 34.9
C68: w1 (Final) | D68: =E60 -> 4.0 | F68: w2 (Final) | G68: =E62 -> 6.0
C69: q1 (Final) | D69: =E61 -> 69.8 | F69: q2 (Final) | G69: =E63 -> 34.9
C73: canti | D73: precio | F73: canti | G73: precio
B74: inicial | C74: =D67 -> 69.8 | D74: =D66 -> 4.0 | E74: inicial | F74: =G67 -> 34.9 | G74: =G66 -> 6.0
B75: final | C75: =D69 -> 69.8 | D75: =D68 -> 4.0 | E75: final | F75: =G69 -> 34.9 | G75: =G68 -> 6.0

Sheet maxbDCF (hidden)
A1: MAXIMIZACIÒN DEL BENEFICIO
A2: CORTO PLAZO
A3: Demanda condicionada de factores
B4: =1-C9 -> 0.6
B5: Función de producción (Caso 1) | E5: Función de producción (Caso 2)
B6: y | C6: ='Oculto MaxBenlp'!C47 -> 31.7 | E6: y | F6: ='Oculto MaxBenlp'!C57 -> 31.7
B7: A | C7: 2.0 | E7: A | F7: ='Oculto MaxBenlp'!C58 -> 2.0
B8: q1 | C8: ='Oculto MaxBenlp'!C49 -> 69.8 | E8: q1 | F8: ='Oculto MaxBenlp'!C59 -> 69.8
B9: a | C9: 0.4 | E9: a | F9: ='Oculto MaxBenlp'!C60 -> 0.4
B10: q2 | C10: ='Oculto MaxBenlp'!C51 -> 34.9 | E10: q2 | F10: ='Oculto MaxBenlp'!C61 -> 34.9
B11: b | C11: 0.3 | E11: b | F11: ='Oculto MaxBenlp'!C62 -> 0.3
C12: Inserte datos correspond.
B14: Precios del bien y factores (Caso 1) | E14: Precios del bien y factores (Caso 2)
B15: p | C15: ='Oculto MaxBenlp'!E47 -> 209.4 | E15: p | F15: ='Oculto MaxBenlp'!E57 -> 209.4
B16: p | C16: 22.0 | E16: p | F16: ='Oculto MaxBenlp'!E58 -> 22.0
B17: w1 | C17: 4.0 | E17: w1 | F17: =C17 -> 4.0
B18: q1 | C18: ='Oculto MaxBenlp'!E51 -> 69.8 | E18: q1 | F18: ='Oculto MaxBenlp'!E61 -> 69.8
B19: w2 | C19: 6.0 | E19: w2 | F19: =C19 -> 6.0
B20: q2 | C20: ='Oculto MaxBenlp'!E53 -> 34.9 | E20: q2 | F20: ='Oculto MaxBenlp'!E63 -> 34.9
C21: Inserte datos correspond. | F21: Cambiar datos
B23: Demanda condicionada factor 1 | E23: Demanda condicionada factor 2
B24: w1 (Inicial) | C24: ='Oculto MaxBenlp'!D66 -> 4.0 | E24: w2 (Inicial) | F24: ='Oculto MaxBenlp'!G66 -> 6.0
B25: q1 (Inicial) | C25: ='Oculto MaxBenlp'!D67 -> 69.8 | E25: q2 (Inicial) | F25: ='Oculto MaxBenlp'!G67 -> 34.9
B26: w1 (Final) | C26: ='Oculto MaxBenlp'!D68 -> 4.0 | E26: w2 (Final) | F26: ='Oculto MaxBenlp'!G68 -> 6.0
B27: q1 (Final) | C27: ='Oculto MaxBenlp'!D69 -> 69.8 | E27: q2 (Final) | F27: ='Oculto MaxBenlp'!G69 -> 34.9
B29: Títulos
B30: Resultados
B31: Insertar datos
B32: Cantidad de equilibrio
